bitfinex-derivatives/quotes_BTCF0:USTF0_20210108
["timestamp","ask_amount","ask_price","bid_price","bid_amount"]
[1610102757665,1.5,40627.0,40534.0,0.00035887]
[1610102757666,4.1298,40628.0,40534.0,0.00035887]
[1610102757864,0.00030198,40627.0,40534.0,0.00035887]
[1610102758064,0.10357198,40627.0,40534.0,0.00035887]
[1610102758364,1.50030195,40626.0,40534.0,0.00035887]
[1610102758765,0.00030195,40625.0,40534.0,0.00035887]
[1610102759766,0.13632608,40592.0,40577.0,0.13632608]
[1610102760167,0.22642608,40592.0,40577.0,0.13632608]
[1610102760365,0.22642608,40592.0,40533.0,0.12474]
[1610102760766,0.22642608,40592.0,40534.0,0.00035883]
[1610102761567,0.13632608,40584.0,40582.0,0.13632608]
[1610102762269,0.0901,40592.0,40582.0,0.13632608]
[1610102763069,0.0901,40592.0,40552.0,3.1992]
[1610102763269,0.0731,40591.0,40552.0,3.1992]
[1610102763672,0.13632608,40590.0,40583.0,0.13632608]
[1610102763871,0.0737,40589.0,40583.0,0.13632608]
[1610102765075,0.0737,40589.0,40584.0,0.00035963]
[1610102765673,0.0737,40589.0,40588.0,0.13632608]
[1610102765873,0.0731,40591.0,40588.0,0.13632608]
[1610102766074,0.10327,40627.0,40588.0,0.13668564]
[1610102766277,0.2817,40648.0,40588.0,0.13668564]
[1610102766477,0.2817,40648.0,40589.0,0.00035956]
[1610102766974,0.07430184,40647.0,40589.0,0.00035956]
[1610102767175,0.16902184,40647.0,40589.0,0.00035956]
[1610102767375,0.00030184,40646.0,40589.0,0.00035956]
[1610102767576,0.13632608,40617.0,40611.0,0.13632608]
[1610102767776,0.24456608,40617.0,40611.0,0.13632608]
[1610102768275,0.24456608,40617.0,40587.0,0.10573]
[1610102768478,0.24456608,40617.0,40588.0,0.00035958]
[1610102768780,0.0744,40616.0,40588.0,0.00035958]
[1610102769577,0.0744,40616.0,40606.0,0.13632608]
[1610102773087,0.0744,40616.0,40607.0,0.00035954]
[1610102773486,0.10824,40617.0,40607.0,0.00035954]
[1610102773685,0.13632608,40631.0,40616.0,0.13632608]
[1610102774087,0.09472,40647.0,40616.0,0.13632608]
[1610102774286,0.2794,40675.0,40617.0,0.00035949]
[1610102774688,0.0731,40674.0,40617.0,0.00035949]
[1610102774888,0.18348174,40674.0,40617.0,0.00035949]
[1610102775091,0.00030174,40673.0,40617.0,0.00035949]
[1610102775688,0.00030174,40673.0,40647.0,0.13632608]
[1610102777591,0.11008,40674.0,40672.0,0.13632608]
[1610102779093,0.11008,40674.0,40642.0,0.08287]
[1610102779592,0.11008,40674.0,40644.0,0.13632608]
[1610102779792,0.11008,40674.0,40630.0,0.08677]
[1610102780094,4.1086,40675.0,40621.0,0.0968]
[1610102780293,0.07881,40674.0,40621.0,0.0968]
[1610102780492,0.07881,40674.0,40622.0,0.0003593]
[1610102780793,0.07881,40674.0,40604.0,0.00035933]
[1610102780992,0.07881,40674.0,40593.0,0.10429]
[1610102781194,0.07881,40674.0,40605.0,0.00035934]
[1610102781597,0.13632608,40631.0,40624.0,0.13632608]
[1610102781898,0.26370608,40631.0,40624.0,0.13632608]
[1610102782395,0.12738,40631.0,40624.0,0.13632608]
[1610102783099,0.10406,40653.0,40624.0,0.13632608]
[1610102783398,0.10406,40653.0,40624.0,0.24158608]
[1610102783596,0.10406,40653.0,40652.0,0.13632608]
[1610102784096,0.13632608,40671.0,40652.0,0.13632608]
[1610102785699,0.13632608,40671.0,40670.0,0.13632608]
[1610102786500,0.0725,40710.0,40670.0,0.13632608]
[1610102787101,1.0,40724.0,40670.0,0.13632608]
[1610102787801,1.0,40731.0,40684.0,0.13632608]
[1610102788204,0.1913745,40674.0,40669.0,0.0818]
[1610102789603,0.13632608,40670.0,40660.0,0.12002]
[1610102790005,0.13632608,40670.0,40650.0,0.08031]
[1610102790204,0.13632608,40670.0,40619.0,3.4348]
[1610102790808,0.26268608,40670.0,40619.0,3.4348]
[1610102791004,0.12636,40670.0,40619.0,3.4348]
[1610102791705,0.13632608,40658.0,40644.0,0.13632608]
[1610102793506,0.13632608,40658.0,40619.0,3.4348]
[1610102793706,0.13632608,40645.0,40634.0,0.13632608]
[1610102793906,0.13632608,40645.0,40619.0,3.4348]
[1610102794508,0.13632608,40645.0,40620.0,0.00035924]
[1610102794712,0.13632608,40645.0,40620.0,0.08793924]
[1610102795208,0.0741,40644.0,40620.0,0.08758]
[1610102795406,0.13632608,40645.0,40620.0,0.08758]
[1610102795607,0.0737,40658.0,40640.0,0.13632608]
[1610102796307,0.10846,40660.0,40640.0,0.13632608]
[1610102796910,3.8133,40705.0,40640.0,0.13632608]
[1610102797410,3.8133,40705.0,40641.0,0.00035912]
[1610102797609,0.13632608,40664.0,40659.0,0.13632608]
[1610102797808,0.13632608,40664.0,40641.0,0.00035912]
[1610102798010,0.13632608,40664.0,40639.0,2.0]
[1610102798409,0.13632608,40664.0,40640.0,0.00035911]
[1610102799612,0.13632608,40664.0,40654.0,0.13632608]
[1610102800610,0.12519,40678.0,40654.0,0.13632608]
[1610102801612,0.13632608,40665.0,40659.0,0.13632608]
[1610102802112,0.13632608,40665.0,40660.0,0.00035905]
[1610102802714,0.12519,40678.0,40660.0,0.00035905]
[1610102803716,0.13632608,40676.0,40667.0,0.13632608]
[1610102804317,0.13632608,40676.0,40668.0,0.00035899]
[1610102805617,0.13632608,40676.0,40661.0,0.12727]
[1610102805618,0.13632608,40676.0,40662.0,0.00035899]
[1610102805821,0.13632608,40663.0,40662.0,0.00035899]
[1610102807023,0.13632608,40663.0,40655.0,0.00035903]
[1610102807228,0.12519,40678.0,40662.0,0.00035903]
[1610102807423,0.12519,40678.0,40655.0,0.00035898]
[1610102807723,0.13632608,40667.0,40663.0,0.00035898]
[1610102808025,0.13632608,40667.0,40656.0,0.000359]
[1610102808322,0.13632608,40667.0,40655.0,0.000359]
[1610102808524,0.13632608,40667.0,40657.0,0.000359]
[1610102808722,0.13632608,40667.0,40656.0,0.000359]
[1610102809024,0.13632608,40667.0,40655.0,0.000359]
[1610102809224,0.13632608,40667.0,40657.0,0.000359]
[1610102809724,0.13632608,40667.0,40652.0,0.09365]
[1610102809725,0.13632608,40667.0,40666.0,0.13632608]
[1610102810425,0.13632608,40667.0,40666.0,0.13668519]
[1610102811525,0.12519,40678.0,40666.0,0.13668519]
[1610102811726,0.13632608,40667.0,40666.0,0.13668519]
[1610102811926,0.13632608,40667.0,40666.0,0.13632608]
[1610102812227,0.13632608,40667.0,40666.0,0.13668517]
[1610102814438,0.12519,40678.0,40666.0,0.13668517]
[1610102814835,0.12519,40678.0,40667.0,0.00035896]
[1610102815737,1.02514287,40752.0,40673.0,0.13632608]
[1610102816034,4.3447,40761.0,40673.0,0.22873608]
[1610102816234,4.3447,40761.0,40673.0,0.22909492]
[1610102816436,0.2701,40759.0,40674.0,0.00035882]
[1610102816736,0.36782,40759.0,40678.0,3.8692]
[1610102816936,0.00030112,40758.0,40679.0,0.00035875]
[1610102817736,0.00030112,40758.0,40702.0,0.13632608]
[1610102818238,0.00030112,40758.0,40703.0,0.00035875]
[1610102818837,0.00030112,40758.0,40702.0,0.13632608]
[1610102819337,0.00030112,40758.0,40703.0,0.00035877]
[1610102819738,0.00030112,40758.0,40716.0,0.13632608]
[1610102821040,0.00030112,40758.0,40731.0,2.0]
[1610102821839,0.13632608,40732.0,40731.0,2.0]
[1610102822141,0.25150608,40732.0,40731.0,2.0]
[1610102824142,0.25150608,40732.0,40731.0,1.51583]
[1610102824341,0.25150608,40732.0,40731.0,1.19109]
[1610102825441,0.25150608,40732.0,40731.0,0.7171]
[1610102832147,0.11518,40732.0,40731.0,0.7171]
[1610102832348,0.09772,40759.0,40731.0,0.7171]
[1610102832548,1.0,40800.0,40731.0,0.7171]
[1610102832849,1.0,40800.0,40730.0,3.1736]
[1610102833048,1.0,40800.0,40734.0,3.5285]
[1610102833851,0.13632608,40754.0,40747.0,0.13632608]
[1610102834253,0.23661608,40754.0,40747.0,0.13632608]
[1610102834653,0.10029,40754.0,40747.0,0.13632608]
[1610102835457,0.12431,40766.0,40747.0,0.13632608]
[1610102835855,0.12431,40766.0,40740.0,0.10908]
[1610102835856,0.12431,40766.0,40765.0,0.13632608]
[1610102836555,0.01936721,40825.0,40765.0,0.13632608]
[1610102837557,0.01936721,40825.0,40773.0,2.9218]
[1610102837758,0.13632608,40811.0,40795.0,0.13632608]
[1610102838061,0.22761608,40811.0,40795.0,0.13632608]
[1610102838258,0.09129,40811.0,40795.0,0.13632608]
[1610102838459,0.09129,40811.0,40796.0,1.9825]
[1610102839361,0.01936721,40825.0,40797.0,0.00036855]
[1610102839761,0.01936721,40825.0,40824.0,0.13632608]
[1610102841061,1.01346645,40916.0,40838.0,2.7817]
[1610102841264,1.01319669,40924.0,40829.0,0.08785]
[1610102841463,0.11015721,40884.0,40850.0,3.7266]
[1610102841661,0.11015721,40884.0,40850.0,3.80578]
[1610102841862,0.13632608,40868.0,40858.0,0.13632608]
[1610102844262,0.09163,40873.0,40858.0,0.13632608]
[1610102844465,0.09163,40873.0,40850.0,0.07918]
[1610102844663,0.09163,40873.0,40867.0,2.0]
[1610102845766,0.13632608,40868.0,40867.0,2.0]
[1610102846065,0.08056,40868.0,40840.0,0.22899608]
[1610102846368,0.08056,40868.0,40840.0,0.09267]
[1610102846764,0.08056,40868.0,40828.0,2.76]
[1610102846965,0.08056,40868.0,40812.0,0.11889]
[1610102847168,0.08056,40868.0,40732.0,3.74020614]
[1610102847169,0.08056,40868.0,40808.0,3.3887]
[1610102847568,0.46788115,40825.0,40808.0,3.3887]
[1610102847768,0.46788115,40825.0,40824.0,0.13632608]
[1610102847966,0.12155,40847.0,40824.0,0.25396608]
[1610102848166,0.12155,40847.0,40825.0,0.4656]
[1610102848467,0.12155,40847.0,40833.0,3.3278]
[1610102848668,0.12155,40847.0,40833.0,3.43967]
[1610102848868,0.08056,40868.0,40833.0,3.43967]
[1610102849869,0.08056,40868.0,40867.0,0.13632608]
[1610102850672,2.8995,40939.0,40867.0,0.13632608]
[1610102850872,1.24988778,40983.0,40867.0,0.13632608]
[1610102851171,0.00893557,40984.0,40867.0,0.13632608]
[1610102851172,3.8732,40954.0,40867.0,0.13632608]
[1610102851372,3.95855,40954.0,40856.0,0.11946]
[1610102851773,0.13632608,40879.0,40871.0,0.13632608]
[1610102851974,0.10974,40879.0,40871.0,0.13632608]
[1610102853374,0.10974,40879.0,40856.0,0.11946]
[1610102853875,0.10974,40879.0,40874.0,0.13632608]
[1610102854875,0.08535,40954.0,40874.0,0.13632608]
[1610102855976,0.13632608,40899.0,40898.0,0.13632608]
[1610102856176,0.26335608,40899.0,40898.0,0.13632608]
[1610102856578,0.08535,40954.0,40898.0,0.13632608]
[1610102856777,0.00893557,40984.0,40898.0,0.13632608]
[1610102857176,0.00893557,40984.0,40875.0,0.09512]
[1610102857378,0.08734557,40984.0,40822.0,0.00461]
[1610102857981,0.08734557,40984.0,40754.0,0.30017986]
[1610102858181,0.00295737,40974.0,40754.0,0.30017986]
[1610102858377,0.12265737,40974.0,40823.0,0.03035061]
[1610102858578,0.00779504,40973.0,40823.0,0.11027]
[1610102858778,0.00779504,40973.0,40824.0,0.03034717]
[1610102859380,0.00029981,40973.0,40824.0,0.03034717]
[1610102859579,0.00029978,40972.0,40824.0,0.03034717]
[1610102859981,0.00029978,40973.0,40920.0,0.13632608]
[1610102861282,0.00029978,40973.0,40888.0,0.09466]
[1610102861783,0.00029978,40973.0,40889.0,0.00036798]
[1610102861984,0.00029978,40973.0,40915.0,0.13632608]
[1610102863284,0.00029978,40973.0,40824.0,0.0028]
[1610102863583,0.00029978,40973.0,40825.0,0.03033119]
[1610102863885,0.13632608,40942.0,40915.0,0.13632608]
[1610102864087,0.25571608,40942.0,40915.0,0.13632608]
[1610102864285,0.11939,40942.0,40915.0,0.13632608]
[1610102865086,0.10726,40964.0,40915.0,0.13632608]
[1610102865287,0.10622,40951.0,40915.0,0.22640608]
[1610102865984,0.10622,40951.0,40950.0,0.13632608]
[1610102866185,0.10622,40951.0,40937.0,0.11426]
[1610102867084,0.10622,40951.0,40825.0,0.2904]
[1610102867286,0.10622,40951.0,40826.0,0.0303176]
[1610102867891,0.13632608,40845.0,40844.0,0.13632608]
[1610102868087,0.13632608,40845.0,40826.0,0.00036768]
[1610102868286,0.0732,40844.0,40826.0,0.00036768]
[1610102868489,0.0739,40863.0,40827.0,0.00036792]
[1610102868690,4.0604,40894.0,40825.0,0.00036792]
[1610102869291,0.074,40902.0,40825.0,0.00036792]
[1610102869990,0.074,40902.0,40826.0,0.13632608]
[1610102870289,1.0,40910.0,40826.0,0.13632608]
[1610102870491,1.0,40910.0,40827.0,0.0003681]
[1610102871792,0.0741,40917.0,40827.0,0.0003681]
[1610102871994,0.13632608,40868.0,40860.0,0.13632608]
[1610102872193,0.13632608,40868.0,40827.0,0.0003681]
[1610102872392,0.0734,40867.0,40861.0,0.00036804]
[1610102872593,0.0734,40867.0,40825.0,0.00036804]
[1610102872792,0.0737,40878.0,40825.0,0.00036804]
[1610102872793,0.12384,40888.0,40825.0,0.00036804]
[1610102873893,0.12384,40888.0,40883.0,0.13632608]
[1610102874196,0.13632608,40903.0,40883.0,0.13632608]
[1610102874997,0.13632608,40903.0,40883.0,0.25976608]
[1610102875297,0.13632608,40903.0,40884.0,0.00036786]
[1610102875496,3.8102,40969.0,40884.0,0.00036786]
[1610102876003,0.13632608,40909.0,40905.0,0.13632608]
[1610102876200,0.13632608,40909.0,40884.0,0.00036786]
[1610102876397,0.13632608,40909.0,40883.0,0.12344]
[1610102877596,0.13632608,40909.0,40884.0,0.0003679]
[1610102877896,0.07798,40912.0,40898.0,0.13632608]
[1610102878597,0.13632608,40920.0,40898.0,0.13632608]
[1610102878998,0.13632608,40920.0,40896.0,0.09327]
[1610102879700,0.13632608,40920.0,40883.0,0.12344]
[1610102879999,0.13632608,40884.0,40875.0,0.13632608]
[1610102880199,0.13632608,40884.0,40873.0,0.08939]
[1610102880400,0.13632608,40884.0,40876.0,0.00036789]
[1610102880600,0.13632608,40884.0,40875.0,0.09651]
[1610102880800,0.13632608,40884.0,40877.0,0.00036789]
[1610102881000,0.12695,40910.0,40908.0,1.75344392]
[1610102881700,0.12695,40910.0,40908.0,1.52924392]
[1610102881900,0.13632608,40909.0,40908.0,1.52924392]
[1610102884717,4.19952608,40909.0,40908.0,0.05629392]
[1610102884912,0.13662594,40909.0,40767.0,0.1569]
[1610102885110,0.00029991,40908.0,40826.0,0.00037773]
[1610102885308,3.8195,40888.0,40826.0,0.00037773]
[1610102885507,3.94539,40888.0,40826.0,0.00037773]
[1610102885908,0.13632608,40827.0,40826.0,0.00037773]
[1610102887611,0.13632608,40827.0,40825.0,0.19387773]
[1610102887809,3.1462,40826.0,40766.0,0.01957831]
[1610102888011,0.08152,40831.0,40766.0,0.01957831]
[1610102888012,0.13632608,40767.0,40766.0,0.01957831]
[1610102888410,3.7054,40775.0,40766.0,0.01957831]
[1610102888610,3.7054,40775.0,40766.0,0.04998548]
[1610102888913,3.7054,40775.0,40766.0,0.01957831]
[1610102889112,3.7054,40775.0,40767.0,0.00037825]
[1610102889612,3.7054,40775.0,40766.0,0.01957831]
[1610102890013,0.13632608,40767.0,40766.0,0.01957831]
[1610102890618,0.07694,40784.0,40766.0,0.01957831]
[1610102890914,0.12138,40804.0,40766.0,0.01957831]
[1610102891912,0.13632608,40767.0,40766.0,0.01957831]
[1610102892315,0.58198,40804.0,40766.0,0.01957831]
[1610102892913,0.58198,40804.0,40757.0,0.07886]
[1610102893514,0.12138,40804.0,40757.0,0.07886]
[1610102893812,3.3724,40838.0,40757.0,0.07886]
[1610102894015,0.13632608,40769.0,40768.0,0.13632608]
[1610102894213,3.3724,40838.0,40768.0,0.13632608]
[1610102894615,0.72537467,40863.0,40768.0,0.13632608]
[1610102894913,0.72533382,40867.0,40768.0,0.24036608]
[1610102895214,0.23216302,40874.0,40768.0,0.24036608]
[1610102895713,3.2612,40875.0,40768.0,0.24036608]
[1610102896114,0.13632608,40821.0,40768.0,0.10404]
[1610102898215,1.0,40831.0,40786.0,0.13632608]
[1610102898515,1.0,40831.0,40786.0,0.26136608]
[1610102899916,0.09023,40838.0,40786.0,0.26136608]
[1610102900115,0.09023,40838.0,40821.0,0.13632608]
[1610102900318,0.09023,40838.0,40821.0,0.22447608]
[1610102900515,0.0813,40852.0,40821.0,0.08815]
[1610102901515,0.72742348,40891.0,40821.0,0.08815]
[1610102901718,0.35043339,40891.0,40821.0,0.08815]
[1610102902019,3.1321,40892.0,40827.0,0.13632608]
[1610102903516,0.72688402,40905.0,40827.0,0.13632608]
[1610102903817,1.0,40896.0,40827.0,0.13632608]
[1610102904116,1.0,40896.0,40821.0,0.08815]
[1610102904117,1.09249,40896.0,40843.0,0.13632608]
[1610102904317,1.09249,40896.0,40843.0,0.21813608]
[1610102904618,0.0732,40895.0,40843.0,0.21813608]
[1610102905417,1.09249,40896.0,40843.0,0.21813608]
[1610102905817,0.09249,40896.0,40843.0,0.21813608]
[1610102906017,0.13632608,40869.0,40865.0,0.13632608]
[1610102906517,0.09249,40896.0,40865.0,0.13632608]
[1610102906716,0.09249,40896.0,40865.0,0.22751608]
[1610102907018,1.0,40921.0,40865.0,0.22751608]
[1610102907919,0.81343547,40962.0,40865.0,0.22751608]
[1610102908116,0.13632608,40912.0,40903.0,0.13632608]
[1610102908319,0.13632608,40912.0,40865.0,0.09119]
[1610102908920,0.0742,40911.0,40865.0,0.09119]
[1610102909718,0.13632608,40912.0,40865.0,0.09119]
[1610102910620,0.08075,40920.0,40865.0,0.09119]
[1610102910824,4.20027008,40953.0,40865.0,0.09119]
[1610102911021,1.0,40964.0,40919.0,6.0]
[1610102911522,1.5,40963.0,40919.0,6.0]
[1610102911721,1.61105,40963.0,40919.0,6.0]
[1610102912121,0.13632608,40920.0,40919.0,6.0]
[1610102912924,0.13632608,40920.0,40904.0,0.1134]
[1610102913124,0.20972608,40920.0,40904.0,0.1134]
[1610102913326,0.13632608,40920.0,40904.0,0.1134]
[1610102914123,0.13632608,40905.0,40904.0,0.1134]
[1610102914323,0.20922608,40905.0,40904.0,0.1134]
[1610102914726,0.27984884,40895.0,40865.0,0.09119]
[1610102914925,0.27984884,40895.0,40808.0,0.2838]
[1610102915127,0.27984884,40895.0,40855.0,1.0]
[1610102915329,0.27984884,40895.0,40855.0,1.09466]
[1610102915526,0.0729,40905.0,40855.0,1.09466]
[1610102915725,0.10935,40922.0,40855.0,1.09466]
[1610102915927,0.10935,40922.0,40881.0,1.0]
[1610102916126,0.10935,40922.0,40889.0,0.13632608]
[1610102916530,0.11105,40963.0,40889.0,0.13632608]
[1610102916927,1.5,40978.0,40889.0,0.13632608]
[1610102917327,0.81201881,40978.0,40889.0,0.13632608]
[1610102917628,0.81224444,40979.0,40889.0,0.13632608]
[1610102917927,1.0,40958.0,40938.0,1.0]
[1610102918129,0.13632608,40949.0,40938.0,1.0]
[1610102918327,0.24531608,40949.0,40938.0,1.0]
[1610102918730,0.10899,40949.0,40938.0,1.0]
[1610102918933,1.0,40958.0,40938.0,1.0]
[1610102919132,1.0,40958.0,40938.0,1.12174]
[1610102919830,0.11016,40970.0,40938.0,0.12174]
[1610102920032,0.13632608,40939.0,40938.0,0.12174]
[1610102920232,0.11016,40970.0,40938.0,0.12174]
[1610102920933,0.00893557,40984.0,40938.0,0.12174]
[1610102921432,0.073,40983.0,40938.0,0.12174]
[1610102921733,0.09929,40983.0,40938.0,0.12174]
[1610102922130,0.0734,40982.0,40940.0,0.13632608]
[1610102922331,0.09929,40983.0,40940.0,0.13632608]
[1610102922832,0.00893557,40984.0,40940.0,0.13632608]
[1610102922833,1.27307672,41029.0,40940.0,0.13632608]
[1610102923132,1.27305668,41031.0,40940.0,0.13632608]
[1610102923531,1.27264466,41032.0,40940.0,0.13632608]
[1610102923839,1.5,41021.0,40938.0,0.12174]
[1610102924047,1.58359,41021.0,40938.0,0.12174]
[1610102924332,1.58359,41021.0,40911.0,1.0]
[1610102924534,3.3321,41012.0,40912.0,0.2856]
[1610102924736,1.5,41011.0,40912.0,0.2856]
[1610102925934,1.0,40988.0,40967.0,1.0]
[1610102926135,0.13632608,40968.0,40967.0,1.0]
[1610102928636,0.13632608,40968.0,40967.0,2.0]
[1610102929735,1.0,41000.0,40967.0,2.0]
[1610102929736,18.07,49147.0,40967.0,1.9]
[1610102929939,0.12776,40968.0,40967.0,1.0]
[1610102930138,0.26408608,40968.0,40967.0,2.0]
[1610102931740,1.0,41002.0,40967.0,2.0]
[1610102932048,3.5709,41035.0,40967.0,1.0]
[1610102932239,0.13632608,40972.0,40967.0,1.13632608]
[1610102933041,0.0975,40983.0,40967.0,1.13632608]
[1610102933240,0.0975,40983.0,40967.0,2.26155608]
[1610102933640,4.68420367,41047.0,40967.0,2.26155608]
[1610102933847,1.44041442,41055.0,40967.0,2.26155608]
[1610102934043,0.00778125,41046.0,40967.0,2.26155608]
[1610102934243,0.549835,41056.0,40978.0,0.13632608]
[1610102934442,1.58338842,41066.0,40978.0,0.13632608]
[1610102934644,0.00778096,41055.0,40978.0,0.13632608]
[1610102934843,0.09495,41055.0,40978.0,0.66822608]
[1610102935046,0.00778057,41054.0,40978.0,0.66822608]
[1610102936047,0.0725,41053.0,40978.0,0.66822608]
[1610102936248,0.13632608,40996.0,40978.0,0.5319]
[1610102936649,0.0002992,40995.0,40978.0,0.5319]
[1610102936949,0.0002992,41008.0,40978.0,0.5319]
[1610102937150,0.0002992,41008.0,40978.0,0.63012]
[1610102937350,0.0002992,41008.0,40980.0,1.0]
[1610102938253,0.13632608,41003.0,40995.0,0.13632608]
[1610102938553,0.00029917,41002.0,40980.0,1.0]
[1610102939354,0.00029917,41002.0,40978.0,0.09822]
[1610102940256,0.13632608,40988.0,40973.0,0.13632608]
[1610102940654,0.00029919,40987.0,40973.0,0.13632608]
[1610102941457,0.11637,40991.0,40986.0,6.0]
[1610102942255,0.11637,40991.0,40990.0,0.13632608]
[1610102942755,0.00029915,40991.0,40990.0,0.13632608]
[1610102942956,1.0,41055.0,40990.0,6.13632608]
[1610102943156,1.0,41055.0,40990.0,6.24324608]
[1610102943356,0.00777767,41054.0,40992.0,3.7447]
[1610102943556,0.12766767,41054.0,40992.0,3.7447]
[1610102943756,0.12766767,41054.0,40990.0,6.24324608]
[1610102943956,0.00777568,41053.0,40990.0,6.24324608]
[1610102944255,0.13632608,41030.0,41001.0,0.13632608]
[1610102944456,0.22309608,41030.0,41001.0,0.13632608]
[1610102944656,0.00029904,41029.0,41001.0,0.13632608]
[1610102945456,0.00777517,41029.0,40976.0,0.08637]
[1610102945957,0.22309608,41030.0,40977.0,0.00037928]
[1610102946263,0.13632608,41016.0,41008.0,1.0]
[1610102946557,0.10555,41020.0,41008.0,1.0]
[1610102946756,0.00029906,41015.0,41008.0,1.0]
[1610102947156,0.08677,41030.0,41008.0,1.0]
[1610102947357,0.08677,41030.0,41002.0,0.13632608]
[1610102947358,0.08677,41030.0,41002.0,1.13632608]
[1610102947559,0.00029903,41029.0,41002.0,1.13632608]
[1610102948161,0.13632608,41027.0,41017.0,0.13632608]
[1610102948760,0.00029901,41026.0,41017.0,0.13632608]
[1610102949362,0.08677,41030.0,41017.0,0.13632608]
[1610102949863,0.00029897,41029.0,41025.0,6.0]
[1610102950062,0.10939,41042.0,41025.0,6.0]
[1610102950262,0.10939,41042.0,41041.0,0.13632608]
[1610102950663,0.25621608,41054.0,41025.0,6.0]
[1610102950862,0.25621608,41054.0,41022.0,3.5314]
[1610102950863,0.00029895,41042.0,41041.0,1.0]
[1610102951062,0.25621608,41054.0,41041.0,1.0]
[1610102951063,0.00029892,41053.0,41041.0,1.0]
[1610102951864,0.25621608,41054.0,41041.0,1.0]
[1610102952062,0.25621608,41054.0,41029.0,0.08677]
[1610102952063,0.25621608,41054.0,41052.0,1.0]
[1610102952262,0.25621608,41054.0,41052.0,1.13632608]
[1610102952762,0.02106391,41103.0,41052.0,1.13632608]
[1610102952963,0.02106307,41104.0,41018.0,0.10461]
[1610102953162,0.00777161,41102.0,41100.0,1.0]
[1610102953364,0.00777166,41103.0,41100.0,0.3028]
[1610102953562,0.12603,41102.0,41079.0,5.0]
[1610102953762,0.12603,41102.0,41033.0,0.10606]
[1610102953763,0.00777179,41101.0,41041.0,1.0]
[1610102954164,0.13632608,41042.0,41041.0,1.0]
[1610102954664,0.13662499,41042.0,41041.0,1.0]
[1610102955464,0.13632608,41042.0,41041.0,1.0]
[1610102955665,0.13662507,41042.0,41041.0,0.871]
[1610102955865,0.07217507,41043.0,40961.0,0.2899]
[1610102956067,0.07217507,41043.0,40961.0,0.37718]
[1610102956266,0.13632608,40995.0,40984.0,0.13632608]
[1610102956468,0.13632608,40995.0,40967.0,1.0]
[1610102958173,0.13632608,40968.0,40967.0,1.0]
[1610102958370,0.26181608,40968.0,40896.0,1.0]
[1610102958872,0.26181608,40968.0,40897.0,0.03030332]
[1610102959069,0.00029932,40967.0,40897.0,0.12226057]
[1610102959270,0.00029932,40967.0,40898.0,0.00038067]
[1610102960171,1.0,40961.0,40941.0,1.0]
[1610102960570,0.00029948,40960.0,40941.0,1.0]
[1610102961178,0.55809948,40960.0,40941.0,1.0]
[1610102961373,0.00029952,40959.0,40941.0,1.0]
[1610102961572,0.11494952,40959.0,40941.0,1.0]
[1610102961975,0.00029955,40958.0,40941.0,1.0]
[1610102962277,0.13632608,40942.0,40885.0,0.13632608]
[1610102962474,0.21863608,40942.0,40885.0,0.13632608]
[1610102962678,0.00029959,40941.0,40887.0,0.00038104]
[1610102963276,0.21863608,40942.0,40885.0,0.13632608]
[1610102963476,0.21863608,40942.0,40886.0,0.38257]
[1610102963676,0.21863608,40942.0,40941.0,0.479929]
[1610102966882,0.21863608,40942.0,40941.0,0.278829]
[1610102967180,0.64903608,40942.0,40886.0,0.2789]
[1610102967384,0.21863608,40942.0,40886.0,0.2789]
[1610102967580,3.3792,40939.0,40886.0,0.2789]
[1610102968282,0.13632608,40887.0,40886.0,0.2789]
[1610102968483,0.24735608,40887.0,40886.0,0.2789]
[1610102968886,3.00285608,40887.0,40886.0,0.2789]
[1610102969485,3.00285608,40887.0,40830.0,1.0]
[1610102969885,0.24735608,40887.0,40830.0,1.0]
[1610102970384,0.24735608,40887.0,40762.0,0.2928]
[1610102970385,0.5452,40886.0,40832.0,0.13632608]
[1610102971288,0.0195,40886.0,40832.0,0.13632608]
[1610102971486,0.11103,40887.0,40832.0,0.13632608]
[1610102971785,0.11103,40887.0,40862.0,0.12606]
[1610102972387,0.13632608,40883.0,40862.0,0.12606]
[1610102973689,0.69292608,40883.0,40862.0,0.12606]
[1610102974190,0.69292608,40883.0,40882.0,1.01957831]
[1610102974590,0.13632608,40883.0,40882.0,1.01957831]
[1610102974791,0.09115,40904.0,40882.0,1.01957831]
[1610102976391,0.13632608,40892.0,40882.0,0.01957831]
[1610102976590,0.22375608,40892.0,40882.0,0.01957831]
[1610102977892,0.08743,40892.0,40882.0,0.01957831]
[1610102978091,0.09115,40904.0,40882.0,0.01957831]
[1610102978292,0.09115,40904.0,40903.0,0.13632608]
[1610102978695,0.13632608,40930.0,40903.0,0.23285608]
[1610102978994,0.03,40941.0,40903.0,0.23285608]
[1610102980298,0.13632608,40925.0,40903.0,0.09653]
[1610102980498,0.22916608,40925.0,40903.0,0.09653]
[1610102982097,0.12494,40938.0,40903.0,0.09653]
[1610102982297,0.13632608,40932.0,40924.0,0.13632608]
[1610102982899,0.12494,40938.0,40924.0,0.13632608]
[1610102983301,0.03,40941.0,40924.0,0.13632608]
[1610102984302,0.03,40941.0,40940.0,0.13632608]
[1610102984706,0.03,40941.0,40933.0,0.10451]
[1610102985504,0.03,40941.0,40919.0,0.09965]
[1610102986406,0.03,40941.0,40939.0,0.13632608]
[1610102986707,0.03,40941.0,40939.0,0.22451608]
[1610102986905,3.0,40940.0,40939.0,0.08819]
[1610102987107,3.12608,40940.0,40939.0,0.08819]
[1610102987708,3.12608,40940.0,40903.0,0.09653]
[1610102988008,3.12608,40940.0,40893.0,0.2936]
[1610102988407,3.26240608,40940.0,40939.0,0.13632608]
[1610102988707,3.13632608,40940.0,40939.0,0.13632608]
[1610102989007,2.6269,40940.0,40939.0,0.13632608]
[1610102989612,2.6269,40940.0,40939.0,0.22241608]
[1610102991810,2.6998,40940.0,40939.0,0.22241608]
[1610102992010,2.6998,40940.0,40939.0,0.12241608]
[1610102992716,2.4538,40940.0,40939.0,0.12241608]
[1610102992912,2.3538,40940.0,40939.0,0.12241608]
[1610102993711,1.9514,40940.0,40939.0,0.12241608]
[1610102995814,1.9514,40940.0,40939.0,0.02241608]
[1610102996112,1.9514,40940.0,40927.0,0.11297]
[1610102996313,1.9514,40940.0,40939.0,1.0]